[Event "*** Titled Tuesday Blitz"]
[Site "Chess.com"]
[Date "2020.11.24"]
[Round "5"]
[White "Ermito2020"]
[Black "elamier"]
[Result "0-1"]
[WhiteElo "2618"]
[BlackElo "2376"]
[TimeControl "180+1"]
[EndTime "11:12:31 PST"]
[Termination "elamier won by resignation"]

1. e4 {[%clk 0:03:00.9]} 1... c5 {[%clk 0:02:56.9]} 2. Nf3 {[%clk 0:03:01.4]}
2... Nc6 {[%clk 0:02:56]} 3. Bb5 {[%clk 0:03:00.2]} 3... g6 {[%clk 0:02:55.1]}
4. O-O {[%clk 0:03:00.6]} 4... Bg7 {[%clk 0:02:54.6]} 5. c3 {[%clk 0:02:59.6]}
5... Nf6 {[%clk 0:02:45.4]} 6. Re1 {[%clk 0:02:59.9]} 6... O-O {[%clk
0:02:41.7]} 7. d4 {[%clk 0:03:00.5]} 7... cxd4 {[%clk 0:02:41.3]} 8. cxd4 {[%clk
0:03:01.3]} 8... d5 {[%clk 0:02:41.2]} 9. e5 {[%clk 0:03:01.9]} 9... Ne4 {[%clk
0:02:35.8]} 10. Nc3 {[%clk 0:03:02.5]} 10... Nxc3 {[%clk 0:02:35.2]} 11. bxc3
{[%clk 0:03:02.7]} 11... Bd7 {[%clk 0:02:25.8]} 12. Bxc6 {[%clk 0:03:01.9]}
12... Bxc6 {[%clk 0:02:25]} 13. e6 {[%clk 0:02:54.7]} 13... f6 {[%clk
0:02:19.5]} 14. Bf4 {[%clk 0:02:45.3]} 14... Qa5 {[%clk 0:02:16.7]} 15. Qd2
{[%clk 0:02:37]} 15... Rac8 {[%clk 0:02:13.3]} 16. h4 {[%clk 0:02:33.9]} 16...
Rfd8 {[%clk 0:02:00.4]} 17. Rac1 {[%clk 0:02:23.1]} 17... Be8 {[%clk 0:01:59.7]}
18. Nh2 {[%clk 0:02:17.3]} 18... Rc4 {[%clk 0:01:51.1]} 19. Ng4 {[%clk
0:02:06.2]} 19... Rdc8 {[%clk 0:01:47.1]} 20. Re3 {[%clk 0:02:06.8]} 20... b5
{[%clk 0:01:30.6]} 21. Kh2 {[%clk 0:01:35.4]} 21... Qa6 {[%clk 0:01:25.4]} 22.
Rb1 {[%clk 0:01:23.3]} 22... Qc6 {[%clk 0:01:09]} 23. Nh6+ {[%clk 0:01:14.8]}
23... Kf8 {[%clk 0:01:06.9]} 24. Ng4 {[%clk 0:00:40.1]} 24... a5 {[%clk
0:01:04.4]} 25. Bh6 {[%clk 0:00:40.4]} 25... Bxh6 {[%clk 0:00:59.5]} 26. Nxh6
{[%clk 0:00:40.5]} 26... Rxc3 {[%clk 0:00:56]} 27. Ng4 {[%clk 0:00:39]} 27...
Rc2 {[%clk 0:00:53.3]} 28. Qd1 {[%clk 0:00:32.2]} 28... h5 {[%clk 0:00:48.5]}
29. Qf3 {[%clk 0:00:13.9]} 29... hxg4 {[%clk 0:00:46.8]} 30. Qxg4 {[%clk
0:00:14.8]} 30... Rxf2 {[%clk 0:00:44.8]} 31. h5 {[%clk 0:00:15]} 31... Qc2
{[%clk 0:00:39.4]} 32. Rg1 {[%clk 0:00:12.1]} 32... Qf5 {[%clk 0:00:23.6]} 33.
Qxf5 {[%clk 0:00:05.6]} 33... Rxf5 {[%clk 0:00:24.5]} 34. hxg6 {[%clk
0:00:05.6]} 34... Bxg6 {[%clk 0:00:23.7]} 35. Ra3 {[%clk 0:00:06.2]} 35... a4
{[%clk 0:00:23.1]} 36. Rh3 {[%clk 0:00:03.5]} 36... Rh5 {[%clk 0:00:22.1]} 37.
Rxh5 {[%clk 0:00:02.8]} 37... Bxh5 {[%clk 0:00:22.2]} 38. Rb1 {[%clk 0:00:03.7]}
38... Be2 {[%clk 0:00:21.2]} 39. Rb2 {[%clk 0:00:03.5]} 39... Bc4 {[%clk
0:00:21.5]} 40. a3 {[%clk 0:00:04.2]} 40... Rc6 {[%clk 0:00:21.4]} 41. Kh3
{[%clk 0:00:04.2]} 41... Rxe6 {[%clk 0:00:21.5]} 42. Kg4 {[%clk 0:00:05.1]}
42... Re3 {[%clk 0:00:21.9]} 43. Kf4 {[%clk 0:00:05.1]} 43... Rxa3 {[%clk
0:00:22.2]} 44. g4 {[%clk 0:00:05.7]} 44... Kf7 {[%clk 0:00:22.6]} 45. Rh2
{[%clk 0:00:04.8]} 45... Rc3 {[%clk 0:00:20]} 46. Rh7+ {[%clk 0:00:04.4]} 46...
Ke6 {[%clk 0:00:20.3]} 47. Rh8 {[%clk 0:00:04.6]} 47... a3 {[%clk 0:00:20.3]}
48. Ra8 {[%clk 0:00:05.5]} 48... a2 {[%clk 0:00:20.4]} 49. Ra6+ {[%clk
0:00:05.3]} 49... Kd7 {[%clk 0:00:19.8]} 50. g5 {[%clk 0:00:06.2]} 50... fxg5+
{[%clk 0:00:19.5]} 51. Kxg5 {[%clk 0:00:06.5]} 51... Rc1 {[%clk 0:00:19.7]} 52.
Ra7+ {[%clk 0:00:07.4]} 52... Kc6 {[%clk 0:00:19.4]} 0-1

[Event "*** Titled Tuesday Blitz"]
[Site "Chess.com"]
[Date "2020.11.24"]
[Round "5"]
[White "machupichu10"]
[Black "Savva09022009"]
[Result "1-0"]
[WhiteElo "2758"]
[BlackElo "2543"]
[TimeControl "180+1"]
[EndTime "11:12:32 PST"]
[Termination "machupichu10 won by checkmate"]

1. d4 {[%clk 0:03:00.9]} 1... Nf6 {[%clk 0:02:56.1]} 2. Bf4 {[%clk 0:02:58.7]}
2... d5 {[%clk 0:02:54.6]} 3. c3 {[%clk 0:02:58.4]} 3... c5 {[%clk 0:02:53.3]}
4. e3 {[%clk 0:02:58.6]} 4... Nc6 {[%clk 0:02:52.8]} 5. Nd2 {[%clk 0:02:59.1]}
5... e6 {[%clk 0:02:52.9]} 6. Ngf3 {[%clk 0:02:58.3]} 6... Bd6 {[%clk
0:02:52.7]} 7. Bg3 {[%clk 0:02:58.9]} 7... O-O {[%clk 0:02:51.2]} 8. Bd3 {[%clk
0:02:59.2]} 8... b6 {[%clk 0:02:48.6]} 9. e4 {[%clk 0:02:59.5]} 9... dxe4 {[%clk
0:02:41.4]} 10. Nxe4 {[%clk 0:02:57.8]} 10... Nxe4 {[%clk 0:02:41.6]} 11. Bxe4
{[%clk 0:02:56.1]} 11... Bb7 {[%clk 0:02:39.9]} 12. dxc5 {[%clk 0:02:55.6]}
12... Bxc5 {[%clk 0:02:33.2]} 13. Qa4 {[%clk 0:02:55.8]} 13... Na5 {[%clk
0:02:25]} 14. Rd1 {[%clk 0:02:25.9]} 14... Qc8 {[%clk 0:02:14]} 15. Ng5 {[%clk
0:01:30.9]} 15... h6 {[%clk 0:01:57.5]} 16. Bxb7 {[%clk 0:01:21.9]} 16... Qxb7
{[%clk 0:01:52.3]} 17. Ne4 {[%clk 0:01:22]} 17... Nc6 {[%clk 0:01:38.2]} 18. O-O
{[%clk 0:01:14.3]} 18... Rfd8 {[%clk 0:01:33.6]} 19. Qb5 {[%clk 0:00:31]} 19...
Bf8 {[%clk 0:01:25.8]} 20. h3 {[%clk 0:00:22.4]} 20... Nd4 {[%clk 0:01:06.8]}
21. Qd3 {[%clk 0:00:22.4]} 21... Nf5 {[%clk 0:01:01.7]} 22. Qf3 {[%clk
0:00:22.5]} 22... Nxg3 {[%clk 0:00:57.2]} 23. Nf6+ {[%clk 0:00:21.9]} 23... gxf6
{[%clk 0:00:54.7]} 24. Qxb7 {[%clk 0:00:22.8]} 24... Nxf1 {[%clk 0:00:53.4]} 25.
Rxd8 {[%clk 0:00:22.9]} 25... Rxd8 {[%clk 0:00:52.9]} 26. Kxf1 {[%clk
0:00:23.4]} 26... Rd2 {[%clk 0:00:52.1]} 27. Qxa7 {[%clk 0:00:20.2]} 27... Rxb2
{[%clk 0:00:52.3]} 28. Qa4 {[%clk 0:00:19.6]} 28... Bc5 {[%clk 0:00:51.3]} 29.
Qg4+ {[%clk 0:00:19.3]} 29... Kf8 {[%clk 0:00:50.9]} 30. f3 {[%clk 0:00:18.1]}
30... Rf2+ {[%clk 0:00:48.6]} 31. Ke1 {[%clk 0:00:17.8]} 31... Rxa2 {[%clk
0:00:49.5]} 32. Kd1 {[%clk 0:00:16.8]} 32... f5 {[%clk 0:00:48.5]} 33. Qf4
{[%clk 0:00:15.5]} 33... Kg7 {[%clk 0:00:46]} 34. g4 {[%clk 0:00:15.9]} 34...
fxg4 {[%clk 0:00:43]} 35. hxg4 {[%clk 0:00:16.8]} 35... Ra1+ {[%clk 0:00:40.1]}
36. Kc2 {[%clk 0:00:16.5]} 36... Ra2+ {[%clk 0:00:41]} 37. Kb3 {[%clk
0:00:16.7]} 37... Rf2 {[%clk 0:00:38.7]} 38. Kc4 {[%clk 0:00:15.5]} 38... Kg6
{[%clk 0:00:37.9]} 39. Kb5 {[%clk 0:00:15.1]} 39... f5 {[%clk 0:00:36.9]} 40.
gxf5+ {[%clk 0:00:10.2]} 40... exf5 {[%clk 0:00:37.8]} 41. Kc6 {[%clk
0:00:10.7]} 41... h5 {[%clk 0:00:33.2]} 42. Kd5 {[%clk 0:00:10.3]} 42... Kf6
{[%clk 0:00:28.5]} 43. Qh6+ {[%clk 0:00:10.2]} 43... Kf7 {[%clk 0:00:28.4]} 44.
Qxh5+ {[%clk 0:00:10.4]} 44... Kf6 {[%clk 0:00:28.9]} 45. Qh6+ {[%clk
0:00:10.9]} 45... Kf7 {[%clk 0:00:28.7]} 46. Qe6+ {[%clk 0:00:11.5]} 46... Kg7
{[%clk 0:00:27.9]} 47. Qxf5 {[%clk 0:00:12.4]} 47... Rd2+ {[%clk 0:00:26.7]} 48.
Kc6 {[%clk 0:00:12.8]} 48... Rf2 {[%clk 0:00:26.5]} 49. f4 {[%clk 0:00:13]}
49... Kh6 {[%clk 0:00:18.6]} 50. Qg5+ {[%clk 0:00:12.7]} 50... Kh7 {[%clk
0:00:18.6]} 51. f5 {[%clk 0:00:13.2]} 51... Ra2 {[%clk 0:00:07]} 52. f6 {[%clk
0:00:11.5]} 52... Ra8 {[%clk 0:00:07.3]} 53. Qg7# {[%clk 0:00:11.5]} 1-0

[Event "*** Titled Tuesday Blitz"]
[Site "Chess.com"]
[Date "2020.11.24"]
[Round "5"]
[White "xberli"]
[Black "Kotofeyca"]
[Result "1-0"]
[WhiteElo "2567"]
[BlackElo "2409"]
[TimeControl "180+1"]
[EndTime "11:12:32 PST"]
[Termination "xberli won by resignation"]

1. d4 {[%clk 0:03:00.9]} 1... d5 {[%clk 0:02:59.7]} 2. c4 {[%clk 0:03:00.3]}
2... c6 {[%clk 0:03:00]} 3. cxd5 {[%clk 0:03:00]} 3... cxd5 {[%clk 0:02:59.2]}
4. Bg5 {[%clk 0:03:00.6]} 4... h6 {[%clk 0:02:59]} 5. Bh4 {[%clk 0:03:00.5]}
5... Qb6 {[%clk 0:02:59.1]} 6. Qd2 {[%clk 0:02:55]} 6... Bf5 {[%clk 0:02:55.4]}
7. Nc3 {[%clk 0:02:54.6]} 7... e6 {[%clk 0:02:55.6]} 8. e3 {[%clk 0:02:48.5]}
8... Nc6 {[%clk 0:02:54.7]} 9. Bd3 {[%clk 0:02:47.2]} 9... Bxd3 {[%clk
0:02:51.8]} 10. Qxd3 {[%clk 0:02:48.1]} 10... Be7 {[%clk 0:02:51.9]} 11. Bxe7
{[%clk 0:02:41.4]} 11... Ngxe7 {[%clk 0:02:52.8]} 12. Nf3 {[%clk 0:02:39.5]}
12... O-O {[%clk 0:02:52.7]} 13. O-O {[%clk 0:02:38.4]} 13... Rfc8 {[%clk
0:02:52.5]} 14. Na4 {[%clk 0:02:30.1]} 14... Qd8 {[%clk 0:02:40.7]} 15. Rfc1
{[%clk 0:02:28.5]} 15... Nf5 {[%clk 0:02:34.7]} 16. Nc5 {[%clk 0:02:16.4]} 16...
Nd6 {[%clk 0:02:23.2]} 17. Ne5 {[%clk 0:02:07.7]} 17... Nxe5 {[%clk 0:01:34]}
18. dxe5 {[%clk 0:02:08.6]} 18... Nc4 {[%clk 0:01:34.5]} 19. Nxb7 {[%clk
0:02:05.6]} 19... Qb6 {[%clk 0:01:34.7]} 20. Nd6 {[%clk 0:02:02]} 20... Nxd6
{[%clk 0:01:19.8]} 21. exd6 {[%clk 0:02:02.9]} 21... Qxd6 {[%clk 0:01:19.9]} 22.
e4 {[%clk 0:02:02.6]} 22... Rxc1+ {[%clk 0:01:11.4]} 23. Rxc1 {[%clk 0:02:03.5]}
23... Rd8 {[%clk 0:01:11]} 24. exd5 {[%clk 0:01:59.2]} 24... exd5 {[%clk
0:01:11.1]} 25. Qd4 {[%clk 0:01:56.1]} 25... Qb6 {[%clk 0:01:03.8]} 26. Qxb6
{[%clk 0:01:53]} 26... axb6 {[%clk 0:01:04.7]} 27. Kf1 {[%clk 0:01:53]} 27...
Kf8 {[%clk 0:01:00.6]} 28. Ke2 {[%clk 0:01:48]} 28... Ke7 {[%clk 0:01:00.1]} 29.
Rc6 {[%clk 0:01:46.2]} 29... Rd6 {[%clk 0:00:48.6]} 30. Rc8 {[%clk 0:01:38.6]}
30... Kd7 {[%clk 0:00:41]} 31. Rg8 {[%clk 0:01:32.9]} 31... g6 {[%clk
0:00:39.6]} 32. Kd3 {[%clk 0:01:31.8]} 32... Rf6 {[%clk 0:00:30.8]} 33. f3
{[%clk 0:01:31.2]} 33... Re6 {[%clk 0:00:25.6]} 34. Kd2 {[%clk 0:01:25.6]} 34...
Kc6 {[%clk 0:00:20.2]} 35. h4 {[%clk 0:01:21.2]} 35... Kc5 {[%clk 0:00:20.2]}
36. Rh8 {[%clk 0:01:14.8]} 36... h5 {[%clk 0:00:19.8]} 37. Rf8 {[%clk
0:01:12.5]} 37... Rf6 {[%clk 0:00:17.9]} 38. Kd3 {[%clk 0:01:11.4]} 38... Rf4
{[%clk 0:00:16.8]} 39. a3 {[%clk 0:01:06.1]} 39... Rxh4 {[%clk 0:00:16.7]} 40.
Rxf7 {[%clk 0:01:04.1]} 40... Rh2 {[%clk 0:00:16.1]} 41. Rc7+ {[%clk 0:00:57.3]}
41... Kd6 {[%clk 0:00:15.3]} 42. Rc2 {[%clk 0:00:56.5]} 42... Ke5 {[%clk
0:00:12.9]} 43. b4 {[%clk 0:00:54.7]} 43... g5 {[%clk 0:00:13]} 44. a4 {[%clk
0:00:54]} 44... g4 {[%clk 0:00:12.7]} 45. fxg4 {[%clk 0:00:53.3]} 45... hxg4
{[%clk 0:00:13.6]} 46. a5 {[%clk 0:00:51.7]} 46... bxa5 {[%clk 0:00:14.5]} 47.
bxa5 {[%clk 0:00:52.6]} 47... Rh1 {[%clk 0:00:13.1]} 48. Ra2 {[%clk 0:00:52.2]}
48... Rh7 {[%clk 0:00:13]} 49. a6 {[%clk 0:00:51.6]} 49... Ra7 {[%clk
0:00:13.5]} 50. Ra4 {[%clk 0:00:51.3]} 50... g3 {[%clk 0:00:13.4]} 51. Ke3
{[%clk 0:00:51.1]} 51... d4+ {[%clk 0:00:13.1]} 52. Kd3 {[%clk 0:00:47.3]} 52...
Kf5 {[%clk 0:00:12.8]} 53. Kxd4 {[%clk 0:00:46.4]} 53... Kf4 {[%clk 0:00:13.2]}
54. Kd3+ {[%clk 0:00:45.9]} 54... Kf5 {[%clk 0:00:12.8]} 55. Ke3 {[%clk
0:00:46.1]} 55... Ke5 {[%clk 0:00:07.6]} 56. Kf3 {[%clk 0:00:45.1]} 56... Rf7+
{[%clk 0:00:08.1]} 57. Kxg3 {[%clk 0:00:45.1]} 57... Rg7+ {[%clk 0:00:09]} 58.
Kf3 {[%clk 0:00:45.1]} 58... Rf7+ {[%clk 0:00:09.2]} 59. Ke3 {[%clk 0:00:45.2]}
59... Ra7 {[%clk 0:00:08.9]} 60. g4 {[%clk 0:00:44.3]} 60... Kd5 {[%clk
0:00:08.2]} 61. g5 {[%clk 0:00:42.9]} 61... Kc5 {[%clk 0:00:08.9]} 62. Kf4
{[%clk 0:00:42.6]} 62... Kb5 {[%clk 0:00:09.8]} 63. Ra1 {[%clk 0:00:42.3]} 63...
Kb6 {[%clk 0:00:10.7]} 64. Kf5 {[%clk 0:00:42.1]} 64... Rf7+ {[%clk 0:00:10.7]}
65. Ke6 {[%clk 0:00:41.3]} 65... Rg7 {[%clk 0:00:10.4]} 66. a7 {[%clk
0:00:39.2]} 66... Rxa7 {[%clk 0:00:09.9]} 67. Rxa7 {[%clk 0:00:40.1]} 67... Kxa7
{[%clk 0:00:10.7]} 68. g6 {[%clk 0:00:40.4]} 1-0

[Event "*** Titled Tuesday Blitz"]
[Site "Chess.com"]
[Date "2020.11.24"]
[Round "5"]
[White "igorknyazev"]
[Black "MikeSailer"]
[Result "1/2-1/2"]
[WhiteElo "2045"]
[BlackElo "2153"]
[TimeControl "180+1"]
[EndTime "11:12:32 PST"]
[Termination "Game drawn by stalemate"]

1. e4 {[%clk 0:01:03.7]} 1... d5 {[%clk 0:02:58.4]} 2. exd5 {[%clk 0:01:03.5]}
2... Qxd5 {[%clk 0:02:58.3]} 3. d4 {[%clk 0:01:04.1]} 3... Nc6 {[%clk
0:02:58.3]} 4. Nc3 {[%clk 0:01:04.6]} 4... Qxd4 {[%clk 0:02:57.8]} 5. Qxd4
{[%clk 0:01:05.1]} 5... Nxd4 {[%clk 0:02:58.1]} 6. Bd3 {[%clk 0:01:05.7]} 6...
Nf6 {[%clk 0:02:53.6]} 7. Be3 {[%clk 0:01:04.5]} 7... e5 {[%clk 0:02:54]} 8.
O-O-O {[%clk 0:01:04.5]} 8... Nc6 {[%clk 0:02:42.5]} 9. Nb5 {[%clk 0:01:03]}
9... Bd6 {[%clk 0:02:39.9]} 10. Nxd6+ {[%clk 0:01:02.4]} 10... cxd6 {[%clk
0:02:40.1]} 11. f4 {[%clk 0:01:02.7]} 11... Bg4 {[%clk 0:02:32.8]} 12. Ne2
{[%clk 0:00:53.2]} 12... O-O-O {[%clk 0:02:27.7]} 13. h3 {[%clk 0:00:52.7]}
13... Bxe2 {[%clk 0:02:17.4]} 14. Bxe2 {[%clk 0:00:53]} 14... d5 {[%clk
0:02:08.9]} 15. fxe5 {[%clk 0:00:51.8]} 15... Nxe5 {[%clk 0:02:09.1]} 16. Bxa7
{[%clk 0:00:51.1]} 16... Ne4 {[%clk 0:02:01.3]} 17. Bd4 {[%clk 0:00:41.8]} 17...
f6 {[%clk 0:01:58.4]} 18. Bf3 {[%clk 0:00:33]} 18... Rhe8 {[%clk 0:01:54.6]} 19.
Rhe1 {[%clk 0:00:28.5]} 19... Nxf3 {[%clk 0:01:52.1]} 20. gxf3 {[%clk
0:00:27.9]} 20... Ng5 {[%clk 0:01:49.2]} 21. f4 {[%clk 0:00:15.3]} 21... Rxe1
{[%clk 0:01:45.1]} 22. Rxe1 {[%clk 0:00:14.8]} 22... Nxh3 {[%clk 0:01:40]} 23.
Re7 {[%clk 0:00:15]} 23... Rd7 {[%clk 0:01:39.6]} 24. Re8+ {[%clk 0:00:14.3]}
24... Kc7 {[%clk 0:01:36.4]} 25. f5 {[%clk 0:00:12.5]} 25... Ng5 {[%clk
0:01:28.6]} 26. Kd2 {[%clk 0:00:11.1]} 26... Nf3+ {[%clk 0:01:26.6]} 27. Kd3
{[%clk 0:00:11.5]} 27... Nxd4 {[%clk 0:01:18.8]} 28. Kxd4 {[%clk 0:00:11.5]}
28... g6 {[%clk 0:01:15]} 29. Rf8 {[%clk 0:00:09.5]} 29... gxf5 {[%clk
0:00:57.5]} 30. Rxf6 {[%clk 0:00:09.8]} 30... h5 {[%clk 0:00:46.9]} 31. Rxf5
{[%clk 0:00:10.3]} 31... Rh7 {[%clk 0:00:47.2]} 32. Rf3 {[%clk 0:00:09.9]} 32...
h4 {[%clk 0:00:44.2]} 33. Rh3 {[%clk 0:00:09.8]} 33... Kd6 {[%clk 0:00:44.9]}
34. b4 {[%clk 0:00:08.5]} 34... b5 {[%clk 0:00:43.9]} 35. a4 {[%clk 0:00:09.4]}
35... bxa4 {[%clk 0:00:44]} 36. c4 {[%clk 0:00:09.3]} 36... dxc4 {[%clk
0:00:42.7]} 37. Kxc4 {[%clk 0:00:09.7]} 37... Kc6 {[%clk 0:00:32.3]} 38. b5+
{[%clk 0:00:07]} 38... Kb6 {[%clk 0:00:32.4]} 39. Kb4 {[%clk 0:00:07.9]} 39...
a3 {[%clk 0:00:32.5]} 40. Kxa3 {[%clk 0:00:07.8]} 40... Kxb5 {[%clk 0:00:33.2]}
41. Kb3 {[%clk 0:00:08.7]} 41... Kc5 {[%clk 0:00:34]} 42. Kc3 {[%clk 0:00:09.6]}
42... Kd5 {[%clk 0:00:34.7]} 43. Kd3 {[%clk 0:00:10.5]} 43... Ke5 {[%clk
0:00:35.5]} 44. Ke3 {[%clk 0:00:11.4]} 44... Kf5 {[%clk 0:00:36]} 45. Kf3 {[%clk
0:00:12.3]} 45... Kg5 {[%clk 0:00:36.4]} 46. Rh1 {[%clk 0:00:11.6]} 46... Rf7+
{[%clk 0:00:31.8]} 47. Kg2 {[%clk 0:00:11.4]} 47... Kg4 {[%clk 0:00:31.2]} 48.
Ra1 {[%clk 0:00:11.4]} 48... Rf4 {[%clk 0:00:30.2]} 49. Ra3 {[%clk 0:00:10.6]}
49... Rb4 {[%clk 0:00:29.5]} 50. Kh2 {[%clk 0:00:10.5]} 50... Rb2+ {[%clk
0:00:29.5]} 51. Kh1 {[%clk 0:00:10.6]} 51... h3 {[%clk 0:00:28.5]} 52. Rc3
{[%clk 0:00:09.7]} 52... Rg2 {[%clk 0:00:25]} 53. Ra3 {[%clk 0:00:09.9]} 53...
Rg3 {[%clk 0:00:25.4]} 54. Rxg3+ {[%clk 0:00:07.5]} 54... Kxg3 {[%clk
0:00:26.1]} 55. Kg1 {[%clk 0:00:08.4]} 55... h2+ {[%clk 0:00:26.9]} 56. Kh1
{[%clk 0:00:08.9]} 56... Kh3 {[%clk 0:00:27.8]} 1/2-1/2

[Event "*** Titled Tuesday Blitz"]
[Site "Chess.com"]
[Date "2020.11.24"]
[Round "5"]
[White "Witik"]
[Black "SlavenPastar"]
[Result "0-1"]
[WhiteElo "2693"]
[BlackElo "2500"]
[TimeControl "180+1"]
[EndTime "11:12:33 PST"]
[Termination "SlavenPastar won on time"]

1. d4 {[%clk 0:03:00.9]} 1... b6 {[%clk 0:03:00.9]} 2. e4 {[%clk 0:03:00]} 2...
Bb7 {[%clk 0:03:01.4]} 3. Nc3 {[%clk 0:02:58.8]} 3... e6 {[%clk 0:03:01.5]} 4.
a3 {[%clk 0:02:57.9]} 4... Nf6 {[%clk 0:03:01.2]} 5. Bd3 {[%clk 0:02:50.4]} 5...
c5 {[%clk 0:03:00.6]} 6. Nf3 {[%clk 0:02:47.5]} 6... cxd4 {[%clk 0:02:59.9]} 7.
Nxd4 {[%clk 0:02:46.5]} 7... Nc6 {[%clk 0:02:59.8]} 8. Nxc6 {[%clk 0:02:41]}
8... Bxc6 {[%clk 0:02:59.4]} 9. O-O {[%clk 0:02:37.1]} 9... Be7 {[%clk
0:02:55.3]} 10. e5 {[%clk 0:02:30.3]} 10... Nd5 {[%clk 0:02:54.7]} 11. Ne4
{[%clk 0:02:30.4]} 11... O-O {[%clk 0:02:08.5]} 12. c4 {[%clk 0:02:28.3]} 12...
Nc7 {[%clk 0:02:06]} 13. Qg4 {[%clk 0:02:09.1]} 13... Ne8 {[%clk 0:01:49.9]} 14.
Bh6 {[%clk 0:01:35.9]} 14... Kh8 {[%clk 0:01:46.8]} 15. Be3 {[%clk 0:01:30.4]}
15... f5 {[%clk 0:01:33.5]} 16. exf6 {[%clk 0:01:30]} 16... Nxf6 {[%clk
0:01:27.4]} 17. Nxf6 {[%clk 0:01:28.9]} 17... Bxf6 {[%clk 0:01:27.4]} 18. Qh5
{[%clk 0:01:24]} 18... g6 {[%clk 0:01:00.7]} 19. Bxg6 {[%clk 0:01:18.7]} 19...
Qe7 {[%clk 0:01:00.4]} 20. f3 {[%clk 0:01:18.1]} 20... Bxb2 {[%clk 0:00:53.4]}
21. Rad1 {[%clk 0:01:08.3]} 21... Kg8 {[%clk 0:00:32.2]} 22. Bb1 {[%clk
0:00:53.7]} 22... Rf7 {[%clk 0:00:22]} 23. Rfe1 {[%clk 0:00:28.7]} 23... Bxa3
{[%clk 0:00:17.5]} 24. Rd4 {[%clk 0:00:27.9]} 24... Bc5 {[%clk 0:00:15.2]} 25.
Rg4+ {[%clk 0:00:27.6]} 25... Kf8 {[%clk 0:00:07.6]} 26. Qh6+ {[%clk 0:00:22.6]}
26... Ke8 {[%clk 0:00:05.7]} 27. Rg8+ {[%clk 0:00:15.5]} 27... Rf8 {[%clk
0:00:05.5]} 28. Rg7 {[%clk 0:00:08.6]} 28... Rf7 {[%clk 0:00:04.4]} 29. Rxh7
{[%clk 0:00:07.1]} 29... Rxh7 {[%clk 0:00:03.5]} 30. Bxh7 {[%clk 0:00:07.8]}
30... Kd8 {[%clk 0:00:03]} 31. Kh1 {[%clk 0:00:05.5]} 31... Bxe3 {[%clk
0:00:02.7]} 32. Rxe3 {[%clk 0:00:06.4]} 32... Kc7 {[%clk 0:00:03.3]} 33. Bd3
{[%clk 0:00:06.2]} 33... Kb7 {[%clk 0:00:03.5]} 34. Qf4 {[%clk 0:00:06.3]} 34...
a5 {[%clk 0:00:03.7]} 35. h3 {[%clk 0:00:06.6]} 35... a4 {[%clk 0:00:04.2]} 36.
Bb1 {[%clk 0:00:06.8]} 36... a3 {[%clk 0:00:04.6]} 37. Ba2 {[%clk 0:00:07.3]}
37... Qb4 {[%clk 0:00:04.6]} 38. Qe5 {[%clk 0:00:03.9]} 38... Qb2 {[%clk
0:00:04]} 39. Re2 {[%clk 0:00:03.3]} 39... Qc1+ {[%clk 0:00:02.4]} 40. Kh2
{[%clk 0:00:03.4]} 40... Rg8 {[%clk 0:00:02.3]} 41. h4 {[%clk 0:00:02.5]} 41...
Bxf3 {[%clk 0:00:02.4]} 0-1

[Event "*** Titled Tuesday Blitz"]
[Site "Chess.com"]
[Date "2020.11.24"]
[Round "5"]
[White "CzechmVIII"]
[Black "akanga001"]
[Result "1-0"]
[WhiteElo "2140"]
[BlackElo "1946"]
[TimeControl "180+1"]
[EndTime "11:12:35 PST"]
[Termination "CzechmVIII won on time"]

1. e4 {[%clk 0:03:00.9]} 1... d6 {[%clk 0:02:49.6]} 2. d4 {[%clk 0:03:00.3]}
2... Nf6 {[%clk 0:02:49.4]} 3. Nc3 {[%clk 0:03:00.5]} 3... c6 {[%clk 0:02:48.2]}
4. f4 {[%clk 0:02:59.5]} 4... Bg4 {[%clk 0:02:40.1]} 5. Be2 {[%clk 0:02:55.7]}
5... Bxe2 {[%clk 0:02:38.9]} 6. Qxe2 {[%clk 0:02:55.9]} 6... Nbd7 {[%clk
0:02:34.8]} 7. Nf3 {[%clk 0:02:54.2]} 7... e5 {[%clk 0:02:34.3]} 8. O-O {[%clk
0:02:43.1]} 8... Qc7 {[%clk 0:02:29.3]} 9. Kh1 {[%clk 0:02:35.1]} 9... O-O-O
{[%clk 0:02:28.5]} 10. Be3 {[%clk 0:02:28.9]} 10... h6 {[%clk 0:02:24.7]} 11. a4
{[%clk 0:02:23.7]} 11... Ng4 {[%clk 0:02:15.2]} 12. Bg1 {[%clk 0:02:08.2]} 12...
exf4 {[%clk 0:02:13.5]} 13. a5 {[%clk 0:01:52.9]} 13... g5 {[%clk 0:02:02.8]}
14. e5 {[%clk 0:01:35.4]} 14... dxe5 {[%clk 0:02:00.3]} 15. dxe5 {[%clk
0:01:35.7]} 15... Ngxe5 {[%clk 0:01:58.5]} 16. Bxa7 {[%clk 0:01:31.4]} 16...
Nxf3 {[%clk 0:01:49.5]} 17. Qxf3 {[%clk 0:01:26.5]} 17... Bc5 {[%clk 0:01:49.9]}
18. Bxc5 {[%clk 0:01:11.4]} 18... Nxc5 {[%clk 0:01:50.8]} 19. b4 {[%clk
0:00:54.4]} 19... Na6 {[%clk 0:01:47.4]} 20. b5 {[%clk 0:00:51.2]} 20... cxb5
{[%clk 0:01:46.7]} 21. Nxb5 {[%clk 0:00:51.4]} 21... Qc5 {[%clk 0:01:40.9]} 22.
c4 {[%clk 0:00:48.4]} 22... f5 {[%clk 0:01:35.5]} 23. Qh5 {[%clk 0:00:42.2]}
23... Kb8 {[%clk 0:01:18.6]} 24. Rfe1 {[%clk 0:00:40.9]} 24... Nc7 {[%clk
0:01:01.4]} 25. Nxc7 {[%clk 0:00:38.1]} 25... Qxc7 {[%clk 0:00:59.1]} 26. a6
{[%clk 0:00:38.3]} 26... b6 {[%clk 0:00:57.8]} 27. Reb1 {[%clk 0:00:28.6]} 27...
Ka7 {[%clk 0:00:56.4]} 28. Qe2 {[%clk 0:00:18.1]} 28... Rd6 {[%clk 0:00:55.3]}
29. h3 {[%clk 0:00:17.5]} 29... Rhd8 {[%clk 0:00:54.1]} 30. Qb2 {[%clk
0:00:16.2]} 30... Qc6 {[%clk 0:00:50.3]} 31. Re1 {[%clk 0:00:14.1]} 31... R8d7
{[%clk 0:00:49.3]} 32. Qf2 {[%clk 0:00:11.8]} 32... Rd2 {[%clk 0:00:46]} 33. Qf3
{[%clk 0:00:12.1]} 33... Qxf3 {[%clk 0:00:38.3]} 34. gxf3 {[%clk 0:00:13]} 34...
Rc2 {[%clk 0:00:29.8]} 35. Re6 {[%clk 0:00:09.3]} 35... Rxc4 {[%clk 0:00:28.1]}
36. Rxh6 {[%clk 0:00:09.4]} 36... Rc3 {[%clk 0:00:27.6]} 37. Rb1 {[%clk
0:00:08.5]} 37... Rc2 {[%clk 0:00:18.5]} 38. Rhxb6 {[%clk 0:00:07.2]} 38... Rcc7
{[%clk 0:00:14.3]} 39. h4 {[%clk 0:00:05.1]} 39... gxh4 {[%clk 0:00:12]} 40.
R6b5 {[%clk 0:00:04.4]} 40... Rf7 {[%clk 0:00:11.1]} 41. Re5 {[%clk 0:00:03.1]}
41... Rg7 {[%clk 0:00:08.3]} 42. Rxf5 {[%clk 0:00:02.3]} 42... Rc2 {[%clk
0:00:07.2]} 43. Rxf4 {[%clk 0:00:02.1]} 43... Kxa6 {[%clk 0:00:05.7]} 44. Rxh4
{[%clk 0:00:02.2]} 44... Rc5 {[%clk 0:00:01.9]} 45. Rh6+ {[%clk 0:00:02.6]} 1-0